bitfinex/quotes_SOLUSD_20220307
["timestamp","ask_amount","ask_price","bid_price","bid_amount"]
[1646638625657,6.59995112,82.508,82.426,176.01897787]
[1646638625860,6.59995112,82.508,82.443,120.5]
[1646638626059,6.59995112,82.515,82.444,0.55319283]
[1646638626258,25.80401839,82.516,82.443,0.55319283]
[1646638626475,6.59953955,82.515,82.446,120.5]
[1646638626671,6.59953955,82.515,82.461,61.01058179]
[1646638626870,6.061,82.514,82.461,61.01058179]
[1646638627271,6.061,82.515,82.461,61.01058179]
[1646638627471,6.061,82.515,82.462,121.05319283]
[1646638627671,23.7301,82.536,82.462,149.70886117]
[1646638627874,6.59775964,82.535,82.464,120.5]
[1646638628271,6.59775964,82.535,82.465,28.65566834]
[1646638628471,6.59775964,82.535,82.481,61.57976746]
[1646638629472,23.7301,82.536,82.481,61.57976746]
[1646638629872,23.7301,82.536,82.481,67.63876746]
[1646638630272,23.7301,82.536,82.481,6.059]
[1646638630475,23.7301,82.536,82.48,32.8651]
[1646638631276,3.23391839,82.545,82.482,120.92989414]
[1646638631477,4.8827009,82.568,82.501,49.63987036]
[1646638631478,3.23391839,82.551,82.501,49.63987036]
[1646638631675,3.23391839,82.552,82.501,49.63987036]
[1646638631876,3.23391839,82.558,82.501,49.63987036]
[1646638632077,6.59629264,82.566,82.5,32.8568]
[1646638632078,3.23391839,82.557,82.5,32.8568]
[1646638632276,3.23391839,82.558,82.5,32.8568]
[1646638632576,3.23391839,82.556,82.5,32.8568]
[1646638632775,9.83021103,82.557,82.5,32.8568]
[1646638632979,3.23391839,82.556,82.5,32.8568]
[1646638634180,9.83021103,82.555,82.5,32.8568]
[1646638634378,6.59629264,82.558,82.5,32.8568]
[1646638634580,6.058,82.557,82.5,32.8568]
[1646638634780,6.59629264,82.556,82.5,32.8568]
[1646638635281,6.59629264,82.555,82.5,14.68]
[1646638635880,6.59629264,82.558,82.5,14.68]
[1646638636079,3.23391839,82.56,82.5,14.68]
[1646638636280,6.59629264,82.566,82.5,32.8608]
[1646638636480,6.59629264,82.566,82.501,0.43792564]
[1646638636879,6.59629264,82.566,82.5,43.33566834]
[1646638638083,6.59629264,82.566,82.502,47.81300007]
[1646638638284,6.59629264,82.566,82.511,0.44449324]
[1646638638480,6.59629264,82.566,82.51,14.68]
[1646638638882,6.057,82.565,82.51,14.68]
[1646638639281,6.59629264,82.564,82.51,14.68]
[1646638639581,120.5,82.565,82.51,14.68]
[1646638639783,12.65224561,82.564,82.49,14.68]
[1646638639980,6.59524561,82.563,82.49,14.68]
[1646638640181,6.058,82.562,82.49,14.68]
[1646638640585,6.59524561,82.561,82.49,61.51866834]
[1646638640782,6.058,82.56,82.49,61.51866834]
[1646638641186,23.7689,82.567,82.491,68.73799576]
[1646638641585,6.59466755,82.566,82.492,28.65566834]
[1646638641788,6.59466755,82.566,82.493,6.058]
[1646638641986,6.59466755,82.566,82.5,18.1809]
[1646638642186,6.59466755,82.566,82.501,6.058]
[1646638642987,1.60913772,82.544,82.5,14.68]
[1646638643188,1.60913772,82.545,82.5,14.68]
[1646638643585,1.60913772,82.546,82.5,14.68]
[1646638644086,23.7689,82.567,82.5,14.68]
[1646638644087,1.60913772,82.548,82.5,14.68]
[1646638644385,6.058,82.566,82.5,14.68]
[1646638644386,1.60913772,82.547,82.5,14.68]
[1646638644786,1.60913772,82.547,82.5,32.8607]
[1646638644986,1.60913772,82.55,82.5,32.8607]
[1646638645185,1.60913772,82.553,82.501,6.058]
[1646638645386,1.60913772,82.552,82.5,14.68]
[1646638645790,1.60913772,82.553,82.501,120.5]
[1646638645990,1.60913772,82.556,82.511,53.7208744]
[1646638646287,3.23391839,82.58,82.52,14.68]
[1646638646288,1.60913772,82.566,82.52,14.68]
[1646638646491,1.60913772,82.578,82.522,0.42250867]
[1646638646688,1.60913772,82.583,82.524,169.10966846]
[1646638646891,1.60913772,82.583,82.531,120.5]
[1646638647189,1.60913772,82.583,82.54,14.68]
[1646638648188,6.056,82.605,82.54,32.8519]
[1646638648189,1.60913772,82.582,82.54,32.8519]
[1646638648590,1.60913772,82.586,82.541,28.65566834]
[1646638648789,1.60913772,82.589,82.541,28.65566834]
[1646638648990,1.60913772,82.59,82.541,28.65566834]
[1646638649189,1.60913772,82.591,82.542,120.5]
[1646638649389,1.60913772,82.594,82.541,28.65566834]
[1646638649989,1.60913772,82.594,82.551,64.71554879]
[1646638650590,1.60913772,82.594,82.55,32.8469]
[1646638650791,1.60913772,82.594,82.55,14.68]
[1646638651395,1.60913772,82.581,82.53,14.68]
[1646638651593,12.64707529,82.61,82.53,14.68]
[1646638651594,1.60913772,82.575,82.531,55.08611099]
[1646638651795,1.60913772,82.573,82.531,55.08611099]
[1646638652395,1.60913772,82.573,82.53,14.68]
[1646638653193,1.60913772,82.57,82.53,14.68]
[1646638653393,1.60913772,82.563,82.53,14.68]
[1646638653994,6.59386379,82.584,82.53,14.68]
[1646638653995,1.60913772,82.561,82.53,14.68]
[1646638654195,1.60913772,82.56,82.53,14.68]
[1646638654796,1.60913772,82.559,82.53,14.68]
[1646638655095,1.60913772,82.562,82.53,32.8545]
[1646638655296,1.60913772,82.56,82.53,32.8545]
[1646638655697,1.60913772,82.56,82.53,14.68]
[1646638656501,1.60913772,82.556,82.53,14.68]
[1646638656701,1.60913772,82.555,82.53,14.68]
[1646638657500,1.60913772,82.554,82.53,14.68]
[1646638659501,1.60913772,82.553,82.53,14.68]
[1646638660402,1.60913772,82.552,82.53,14.68]
[1646638661405,1.60913772,82.551,82.53,14.68]
[1646638661804,1.60913772,82.55,82.53,14.68]
[1646638663005,1.60913772,82.551,82.53,63.17845536]
[1646638663205,1.60913772,82.55,82.53,63.17845536]
[1646638663607,1.60913772,82.551,82.53,63.17845536]
[1646638663808,1.60913772,82.55,82.53,63.17845536]
[1646638664006,1.60913772,82.553,82.53,81.35295536]
[1646638664206,1.60913772,82.562,82.53,81.35295536]
[1646638664406,1.60913772,82.563,82.531,120.5]
[1646638664607,1.60913772,82.563,82.532,0.44715958]
[1646638664808,1.60913772,82.562,82.532,0.44715958]
[1646638665006,1.60913772,82.562,82.53,81.35295536]
[1646638665407,1.60913772,82.563,82.53,99.75085536]
[1646638665808,1.60913772,82.564,82.53,81.35295536]
[1646638666208,1.60913772,82.562,82.53,81.35295536]
[1646638666511,1.60913772,82.562,82.53,32.8545]
[1646638666708,1.60913772,82.56,82.53,32.8545]
[1646638667509,1.60913772,82.561,82.53,32.8545]
[1646638667724,1.60913772,82.563,82.53,32.8545]
[1646638667926,1.60913772,82.564,82.53,32.8545]
[1646638668128,1.60913772,82.565,82.53,32.8545]
[1646638668327,1.60913772,82.565,82.53,51.2602]
[1646638668826,1.60913772,82.568,82.53,51.2602]
[1646638670027,1.60913772,82.567,82.53,51.2602]
[1646638670428,1.60913772,82.566,82.53,51.2602]
[1646638670628,1.60913772,82.564,82.53,51.2602]
[1646638671228,1.60913772,82.563,82.53,51.2602]
[1646638673228,1.60913772,82.564,82.53,51.2602]
[1646638673428,1.60913772,82.563,82.53,51.2602]
[1646638674335,1.60913772,82.56,82.53,51.2602]
[1646638674928,1.60913772,82.559,82.53,51.2602]
[1646638675942,1.60913772,82.558,82.53,51.2602]
[1646638676343,1.60913772,82.557,82.53,51.2602]
[1646638677945,1.60913772,82.556,82.53,51.2602]
[1646638678546,1.60913772,82.558,82.53,51.2602]
[1646638679346,1.60913772,82.553,82.53,51.2602]
[1646638679846,3.23391839,82.576,82.53,51.2602]
[1646638679847,1.60913772,82.554,82.53,51.2602]
[1646638680047,1.60913772,82.553,82.53,51.2602]
[1646638680448,1.60913772,82.554,82.53,51.2602]
[1646638681150,1.60913772,82.551,82.53,51.2602]
[1646638681750,1.60913772,82.553,82.53,51.2602]
[1646638683050,1.60913772,82.553,82.53,14.68]
[1646638683250,1.60913772,82.553,82.516,28.65566834]
[1646638683251,1.60913772,82.551,82.511,6.057]
[1646638683451,1.60913772,82.542,82.511,6.057]
[1646638683651,1.60913772,82.537,82.491,6.058]
[1646638683950,1.60913772,82.54,82.492,55.08718147]
[1646638684151,1.60913772,82.54,82.5,18.1808]
[1646638684459,1.60913772,82.54,82.511,52.34072891]
[1646638684657,1.60913772,82.541,82.511,52.34072891]
[1646638685058,1.60913772,82.542,82.511,52.34072891]
[1646638685456,1.60913772,82.542,82.532,0.79018174]
[1646638685758,1.60913772,82.543,82.533,0.04290162]
[1646638685956,1.60913772,82.545,82.533,0.04290162]
[1646638686158,1.60913772,82.548,82.533,0.04290162]
[1646638686775,1.60913772,82.549,82.533,0.04290162]
[1646638686976,1.60913772,82.55,82.533,0.04290162]
[1646638687180,1.60913772,82.555,82.533,0.04290162]
[1646638687579,3.23391839,82.579,82.533,0.04290162]
[1646638687580,1.60913772,82.556,82.533,0.04290162]
[1646638687779,1.60913772,82.556,82.534,0.41805112]
[1646638688079,1.60913772,82.556,82.533,0.04290162]
[1646638689079,1.60913772,82.557,82.533,0.04290162]
[1646638689281,1.60913772,82.557,82.54,18.1722]
[1646638689482,1.60913772,82.561,82.541,185.10899793]
[1646638689683,6.59228341,82.59,82.543,90.0]
[1646638689882,1.61892714,82.579,82.545,0.5644566]
[1646638690083,6.055,82.617,82.545,0.5644566]
[1646638690084,9.28891839,82.617,82.561,120.5]
[1646638690282,13.18202314,82.646,82.56,14.68]
[1646638690283,3.23391839,82.632,82.57,18.1532]
[1646638690482,6.58857809,82.635,82.581,120.5]
[1646638690683,6.58857809,82.646,82.583,120.5]
[1646638690880,4.8827009,82.675,82.582,47.91467921]
[1646638690881,3.23391839,82.65,82.585,120.5]
[1646638691082,3.23391839,82.65,82.587,120.5]
[1646638691280,3.23391839,82.653,82.601,120.5]
[1646638691485,3.23391839,82.653,82.611,120.5]
[1646638691682,3.23391839,82.66,82.62,14.68]
[1646638691881,24.2042,82.674,82.621,49.48062575]
[1646638692682,6.049,82.673,82.621,49.48062575]
[1646638693281,6.049,82.673,82.62,14.68]
[1646638693883,6.049,82.673,82.589,6.049]
[1646638694086,24.2975,82.672,82.6,14.68]
[1646638694384,6.05,82.671,82.6,14.68]
[1646638694584,145.25380856,82.67,82.6,14.68]
[1646638694785,12.63820856,82.669,82.6,14.68]
[1646638694985,6.58820856,82.668,82.6,14.68]
[1646638695185,6.05,82.667,82.6,14.68]
[1646638695587,6.05,82.669,82.6,14.68]
[1646638695791,6.05,82.671,82.6,14.68]
[1646638696289,127.08834596,82.67,82.6,14.68]
[1646638696490,6.05,82.669,82.58,14.68]
[1646638696691,127.08844967,82.668,82.58,14.68]
[1646638696893,6.051,82.667,82.58,14.68]
[1646638697294,6.051,82.667,82.581,55.12810577]
[1646638697791,6.051,82.669,82.581,55.12810577]
[1646638697993,6.58855845,82.668,82.581,55.12810577]
[1646638698194,6.051,82.667,82.581,55.12810577]
[1646638698594,6.051,82.671,82.581,55.12810577]
[1646638698795,6.58859081,82.67,82.581,55.12810577]
[1646638698994,6.051,82.669,82.581,55.12810577]
[1646638699194,6.58859081,82.668,82.581,55.12810577]
[1646638699395,6.051,82.667,82.581,55.12810577]
[1646638699999,6.051,82.671,82.59,18.1608]
[1646638700298,6.58852529,82.67,82.59,32.8408]
[1646638700500,6.051,82.669,82.59,32.8408]
[1646638700897,6.051,82.671,82.59,32.8408]
[1646638701099,6.58842041,82.668,82.59,32.8408]
[1646638701301,6.051,82.671,82.59,32.8408]
[1646638701302,6.051,82.667,82.59,32.8408]
[1646638701500,6.051,82.669,82.59,32.8408]
[1646638701698,6.051,82.671,82.59,32.8408]
[1646638701899,6.58846369,82.67,82.59,32.8408]
[1646638702099,120.5,82.668,82.59,32.8408]
[1646638702309,6.051,82.667,82.59,32.8408]
[1646638702900,120.5,82.669,82.59,32.8408]
[1646638703100,133.13985788,82.668,82.59,14.68]
[1646638703301,126.00502198,82.666,82.59,14.68]
[1646638703600,120.5,82.664,82.59,14.68]
[1646638703800,120.5,82.662,82.57,14.68]
[1646638704000,120.5,82.66,82.57,14.68]
[1646638704200,5.82196914,82.657,82.57,14.68]
[1646638704403,120.5,82.655,82.571,60.65095116]
[1646638704601,6.051,82.654,82.571,60.65095116]
[1646638705002,6.051,82.655,82.572,28.986735]
[1646638706003,6.051,82.655,82.571,60.65095116]
[1646638706602,22.6175,82.656,82.571,60.65095116]
[1646638706802,6.58851097,82.655,82.571,60.65095116]
[1646638707502,22.6175,82.656,82.571,60.65095116]
[1646638708103,22.6175,82.656,82.581,120.5]
[1646638708305,22.6175,82.656,82.58,14.68]
[1646638708604,22.6175,82.656,82.581,28.986735]
[1646638711405,6.051,82.655,82.581,28.986735]
[1646638712005,6.051,82.655,82.582,120.5]
[1646638712204,22.6175,82.656,82.593,120.5]
[1646638712406,22.6175,82.656,82.6,14.68]
[1646638715613,6.051,82.655,82.592,53.62786358]
[1646638716611,6.58720612,82.654,82.592,53.62786358]
[1646638716811,6.051,82.653,82.592,53.62786358]
[1646638717210,6.051,82.655,82.584,24.3266]
[1646638717410,22.6175,82.656,82.584,24.3266]
[1646638717813,6.58695065,82.655,82.584,24.3266]
[1646638718511,22.6175,82.656,82.584,53.313335]
[1646638718811,6.58751303,82.655,82.584,53.313335]
[1646638719110,3.23391839,82.653,82.584,53.313335]
[1646638719411,3.23391839,82.652,82.584,53.313335]
[1646638720212,3.23391839,82.653,82.584,173.813335]
[1646638720419,22.6175,82.656,82.591,120.5]
[1646638720623,22.6175,82.656,82.601,120.5]
[1646638720813,3.23391839,82.673,82.61,14.68]
[1646638721012,23.6965,82.672,82.62,14.68]
[1646638721216,23.6965,82.672,82.603,120.5]
[1646638721217,6.5855064,82.671,82.63,14.68]
[1646638721419,6.5855064,82.671,82.621,53.52232398]
[1646638723215,23.6965,82.672,82.621,53.52232398]
[1646638723615,6.58558421,82.671,82.62,14.68]
[1646638723816,6.049,82.67,82.62,14.68]
[1646638724017,3.23391839,82.668,82.604,23.5033]
[1646638724218,6.05,82.667,82.6,14.68]
[1646638724417,3.23391839,82.659,82.6,14.68]
[1646638724715,9.28491839,82.658,82.6,14.68]
[1646638724916,24.3217,82.657,82.6,14.68]
[1646638725115,12.63658421,82.656,82.6,14.68]
[1646638725314,6.58558421,82.655,82.6,14.68]
[1646638725523,6.051,82.654,82.6,14.68]
[1646638725915,6.58558421,82.653,82.58,14.68]
[1646638726116,6.051,82.652,82.58,14.68]
[1646638726517,6.58558421,82.651,82.58,14.68]
[1646638726717,6.051,82.65,82.58,43.666735]
[1646638726917,6.58558421,82.649,82.59,18.1608]
[1646638727116,6.58558421,82.649,82.59,14.68]
[1646638727316,3.23391839,82.65,82.59,14.68]
[1646638727517,6.051,82.649,82.59,14.68]
[1646638727716,6.58558421,82.648,82.578,24.4025]
[1646638727918,22.9507,82.647,82.578,24.4025]
[1646638728121,6.58558421,82.646,82.578,24.4025]
[1646638728319,6.051,82.645,82.578,24.4025]
[1646638728521,9.8195026,82.644,82.578,24.4025]
[1646638728819,6.051,82.643,82.578,24.4025]
[1646638729024,6.58558421,82.642,82.57,32.845]
[1646638729324,3.23391839,82.639,82.555,11.95037326]
[1646638729525,3.23391839,82.634,82.56,14.68]
[1646638729724,6.053,82.633,82.553,23.8514]
[1646638729922,29.53628421,82.632,82.553,23.8514]
[1646638730126,12.63858421,82.631,82.554,63.76672119]
[1646638730327,6.58558421,82.63,82.554,63.76672119]
[1646638730528,6.053,82.629,82.554,63.76672119]
[1646638730928,6.58558421,82.628,82.554,63.76672119]
[1646638731129,6.053,82.627,82.554,92.75345619]
[1646638731330,6.58558421,82.626,82.554,92.75345619]
[1646638731529,6.054,82.625,82.554,92.75345619]
[1646638731730,6.58558421,82.624,82.554,92.75345619]
[1646638731934,6.054,82.623,82.554,92.75345619]
[1646638732332,24.2943,82.622,82.554,92.75345619]
[1646638732531,24.2943,82.622,82.554,28.986735]
[1646638732931,12.64407856,82.621,82.554,28.986735]
[1646638733131,6.59007856,82.62,82.554,28.986735]
[1646638733631,6.59007856,82.621,82.555,64.62126641]
[1646638734032,6.59007856,82.621,82.554,28.986735]
[1646638734232,6.59007856,82.621,82.55,14.68]
[1646638734431,6.054,82.62,82.55,14.68]
[1646638734632,6.59007856,82.619,82.55,14.68]
[1646638734832,6.054,82.618,82.55,14.68]
[1646638735246,6.59007856,82.617,82.55,14.68]
[1646638735451,6.59007856,82.617,82.542,28.986735]
[1646638735452,6.054,82.616,82.542,28.986735]
[1646638735648,3.23391839,82.615,82.542,28.986735]
[1646638735950,120.5,82.613,82.54,14.68]
[1646638736147,6.054,82.614,82.54,14.68]
[1646638736148,120.5,82.611,82.54,14.68]
[1646638736348,120.5,82.609,82.54,14.68]
[1646638736547,120.5,82.607,82.54,14.68]
[1646638736951,12.64621054,82.606,82.54,14.68]
[1646638737150,6.59121054,82.605,82.54,14.68]
[1646638737448,6.055,82.604,82.54,14.68]
[1646638737649,120.5,82.607,82.54,14.68]
[1646638737849,6.055,82.606,82.54,14.68]
[1646638738051,120.5,82.605,82.54,14.68]
[1646638738250,120.5,82.603,82.517,28.986735]
[1646638738452,3.23391839,82.6,82.5,14.68]
[1646638738651,3.23391839,82.596,82.5,14.68]
[1646638738851,123.73391839,82.594,82.5,14.68]
[1646638739054,120.5,82.592,82.5,14.68]
[1646638739252,120.5,82.59,82.5,14.68]
[1646638739452,120.5,82.588,82.5,14.68]
[1646638739654,125.44147144,82.586,82.5,14.68]
[1646638739854,120.5,82.584,82.5,14.68]
[1646638740052,120.5,82.582,82.5,14.68]
[1646638740252,138.6853,82.58,82.5,14.68]
[1646638740452,120.5,82.578,82.5,14.68]
[1646638740652,120.5,82.576,82.5,14.68]
[1646638740853,120.5,82.576,82.5,43.666735]
[1646638741253,6.057,82.575,82.5,43.666735]
[1646638741455,6.057,82.575,82.501,58.95182592]
[1646638741853,6.057,82.575,82.502,28.986735]
[1646638742053,120.5,82.579,82.502,28.986735]
[1646638742355,6.057,82.578,82.502,28.986735]
[1646638742553,6.057,82.581,82.502,28.986735]
[1646638743756,6.057,82.581,82.511,120.5]
[1646638743956,49.2304,82.582,82.521,52.85063048]
[1646638744562,49.2304,82.582,82.522,28.986735]
[1646638744758,6.056,82.581,82.522,28.986735]
[1646638744962,6.056,82.581,82.523,120.5]
[1646638745164,28.43644401,82.657,82.532,0.58466923]
[1646638745165,6.056,82.602,82.532,0.58466923]
[1646638745369,6.055,82.643,82.541,120.5]
[1646638745660,6.59002762,82.642,82.542,60.62809113]
[1646638745860,120.5,82.64,82.542,89.0301569]
[1646638746063,120.5,82.638,82.542,89.0301569]
[1646638746260,28.6166,82.637,82.542,89.0301569]
[1646638747261,152.85561489,82.636,82.542,60.0434219]
[1646638747461,12.64434777,82.635,82.542,60.0434219]
[1646638747660,6.59034777,82.634,82.542,60.0434219]
[1646638747861,6.054,82.633,82.542,60.0434219]
[1646638748061,120.5,82.632,82.542,60.0434219]
[1646638748261,120.5,82.63,82.542,60.0434219]
[1646638748462,120.5,82.628,82.542,60.0434219]
[1646638748664,6.054,82.627,82.542,60.0434219]
[1646638749262,24.5707,82.626,82.542,60.0434219]
[1646638749462,6.054,82.625,82.542,60.0434219]
[1646638752265,6.054,82.625,82.543,120.5]
[1646638752468,6.054,82.625,82.55,18.1698]
[1646638752666,6.054,82.625,82.55,32.8498]
[1646638754067,6.054,82.625,82.55,14.68]
[1646638754267,6.59118159,82.624,82.55,14.68]
[1646638754467,6.054,82.623,82.55,14.68]
[1646638754669,6.59118159,82.622,82.55,14.68]
[1646638754869,6.054,82.621,82.55,14.68]
[1646638755268,6.054,82.625,82.55,14.68]
[1646638755469,6.59092269,82.624,82.55,14.68]
[1646638755668,6.054,82.623,82.55,14.68]
[1646638755868,6.59092269,82.622,82.55,14.68]
[1646638756068,6.054,82.621,82.55,14.68]
[1646638756472,6.59092269,82.62,82.55,14.68]
[1646638756669,6.054,82.619,82.55,14.68]
[1646638757371,6.054,82.625,82.55,14.68]
[1646638757569,6.59113572,82.624,82.55,14.68]
[1646638757769,3.23391839,82.621,82.55,14.68]
[1646638757971,6.054,82.62,82.55,14.68]
[1646638758372,6.59113572,82.619,82.55,14.68]
[1646638758573,6.054,82.618,82.55,14.68]
[1646638758773,6.59113572,82.617,82.55,14.68]
[1646638758975,6.054,82.616,82.55,14.68]
[1646638759172,29.87383572,82.615,82.55,14.68]
[1646638759374,6.054,82.614,82.55,14.68]
[1646638760977,6.59109647,82.613,82.55,14.68]
[1646638761174,6.054,82.612,82.55,14.68]
[1646638761796,6.054,82.614,82.55,14.68]
[1646638761997,23.2827,82.615,82.55,14.68]
[1646638762197,6.59098539,82.614,82.55,14.68]
[1646638765099,6.054,82.613,82.55,14.68]
[1646638765499,6.054,82.614,82.55,14.68]
[1646638766502,6.59072777,82.613,82.55,14.68]
[1646638766703,6.054,82.612,82.55,14.68]
[1646638767003,3.23391839,82.61,82.53,14.68]
[1646638767202,120.5,82.608,82.517,28.986735]
[1646638767401,120.5,82.608,82.51,14.68]
[1646638767402,3.23391839,82.605,82.51,14.68]
[1646638767603,3.23391839,82.596,82.51,14.68]
[1646638767807,123.73391839,82.594,82.51,14.68]
[1646638768002,120.5,82.592,82.51,14.68]
[1646638768202,120.5,82.59,82.51,14.68]
[1646638768403,120.5,82.588,82.51,14.68]
[1646638768602,6.057,82.587,82.51,14.68]
[1646638768803,120.5,82.586,82.49,14.68]
[1646638769004,120.5,82.579,82.479,18.5054]
[1646638769210,4.51600665,82.575,82.479,18.5054]
[1646638769404,123.73391839,82.573,82.472,22.9268]
[1646638769604,3.23391839,82.565,82.472,22.9268]
[1646638769805,120.5,82.571,82.472,22.9268]
[1646638770004,120.5,82.569,82.472,22.9268]
[1646638770207,4.64712797,82.566,82.472,22.9268]
[1646638770504,12.64972777,82.565,82.472,22.9268]
[1646638770706,18.1899,82.56,82.472,22.9268]
[1646638770905,6.059,82.559,82.472,22.9268]
[1646638771308,23.8716,82.558,82.473,120.5]
[1646638771904,23.8716,82.558,82.48,18.1852]
[1646638772105,23.8716,82.558,82.48,32.8652]
[1646638773606,6.059,82.557,82.48,32.8652]
[1646638774011,6.059,82.557,82.48,14.68]
[1646638774806,126.559,82.557,82.48,14.68]
[1646638775006,2.83613526,82.556,82.48,14.68]
[1646638775206,6.059,82.555,82.48,14.68]
[1646638775606,8.89513526,82.555,82.48,14.68]
[1646638776006,120.5,82.554,82.433,31.65332166]
[1646638776208,120.5,82.552,82.443,24.6623]
[1646638776406,138.6921,82.55,82.45,14.68]
[1646638776608,120.5,82.548,82.45,14.68]
[1646638777008,5.84631853,82.545,82.451,61.20377054]
[1646638777207,120.5,82.543,82.451,61.20377054]
[1646638777409,120.5,82.541,82.451,61.20377054]
[1646638777613,120.5,82.539,82.451,61.20377054]
[1646638777807,120.5,82.537,82.451,61.20377054]
[1646638778007,29.2788,82.536,82.451,61.20377054]
[1646638779210,29.2788,82.536,82.452,120.5]
[1646638779412,29.2788,82.536,82.452,132.45037326]
[1646638779611,29.2788,82.536,82.454,120.5]
[1646638779810,23.2178,82.536,82.454,143.1502]
[1646638780010,23.2178,82.536,82.456,120.5]
[1646638780214,23.2178,82.536,82.471,58.44595606]
[1646638780612,6.06,82.535,82.47,14.68]
[1646638782013,120.5,82.534,82.47,14.68]
[1646638782214,120.5,82.532,82.441,11.95037326]
[1646638782412,120.5,82.53,82.43,14.68]
[1646638782611,120.5,82.528,82.43,14.68]
[1646638782811,120.5,82.528,82.412,71.15024856]
[1646638783111,4.76291362,82.525,82.412,50.26212566]
[1646638783312,120.5,82.523,82.412,50.26212566]
[1646638783512,120.5,82.521,82.412,50.26212566]
[1646638783713,120.5,82.519,82.412,50.26212566]
[1646638783911,120.5,82.499,82.412,50.26212566]
[1646638784112,120.5,82.497,82.412,50.26212566]
[1646638784316,6.063,82.496,82.412,50.26212566]
[1646638784714,8.89913526,82.496,82.412,50.26212566]
[1646638784914,8.89913526,82.496,82.411,46.748]
[1646638785514,6.063,82.496,82.411,46.748]
[1646638786518,6.064,82.497,82.411,46.748]
[1646638787717,120.5,82.496,82.411,46.748]
[1646638787917,120.5,82.494,82.411,46.748]
[1646638788228,5.01053153,82.488,82.39,14.68]
[1646638788418,120.5,82.486,82.39,14.68]
[1646638788823,120.5,82.484,82.377,60.61277475]
[1646638789117,120.5,82.482,82.38,14.68]
[1646638789318,4.52113597,82.479,82.38,14.68]
[1646638789518,120.5,82.469,82.38,14.68]
[1646638789720,120.5,82.467,82.38,14.68]
[1646638789919,120.5,82.465,82.38,14.68]
[1646638790218,120.5,82.463,82.38,14.68]
[1646638790617,120.5,82.461,82.38,14.68]
[1646638790818,120.5,82.459,82.38,14.68]
[1646638791018,126.566,82.458,82.38,14.68]
[1646638791821,6.066,82.458,82.38,32.8872]
[1646638792020,6.066,82.463,82.381,120.5]
[1646638792222,46.7583,82.464,82.381,120.5]
[1646638792421,46.7583,82.464,82.381,173.44835762]
[1646638792622,46.7583,82.464,82.383,120.5]
[1646638792821,6.066,82.463,82.383,120.5]
[1646638793022,6.066,82.463,82.4,18.1983]
[1646638793223,6.066,82.463,82.401,55.04690038]
[1646638796129,46.7583,82.464,82.401,55.04690038]
[1646638796830,6.065,82.48,82.41,18.2011]
[1646638797128,18.1239,82.565,82.421,52.07721373]
[1646638797129,30.6336,82.495,82.421,52.07721373]
[1646638797331,30.6336,82.495,82.422,0.61937453]
[1646638797332,24.5696,82.495,82.422,0.61937453]
[1646638797530,24.5696,82.495,82.421,52.07721373]
[1646638797741,6.063,82.494,82.421,52.07721373]
[1646638798239,6.063,82.494,82.422,0.4086661]
[1646638798440,24.5696,82.495,82.421,52.07721373]
[1646638799042,24.5696,82.495,82.43,18.1926]
[1646638799242,24.5696,82.495,82.44,14.68]
[1646638799442,24.5696,82.495,82.441,51.02720268]
[1646638800143,24.5696,82.495,82.44,14.68]
[1646638801444,6.062,82.494,82.44,14.68]
[1646638803460,24.5696,82.495,82.44,14.68]
[1646638805069,6.062,82.494,82.44,14.68]